bitfinex-derivatives/quotes_ETHF0:USTF0_20250502
["timestamp","ask_amount","ask_price","bid_price","bid_amount"]
[1746144589147,45.45007421,1838.5,1838.4,1.08752]
[1746144589444,23.71027421,1838.5,1838.4,3.696]
[1746144590150,2.7117,1838.5,1838.4,4.78352]
[1746144590742,23.71027421,1838.5,1838.4,3.696]
[1746144591750,23.71027421,1838.5,1838.4,4.78352]
[1746144592151,20.99857421,1838.5,1838.4,4.78352]
[1746144592347,5.13233,1838.6,1838.4,4.78347]
[1746144592547,42.73837421,1838.5,1838.4,4.78347]
[1746144593050,42.73837421,1838.5,1838.4,45.58347]
[1746144593345,1.08746,1838.5,1838.4,45.58347]
[1746144593847,1.92454,1838.6,1838.5,1.08746]
[1746144594047,23.66434,1838.6,1838.5,4.78346]
[1746144594248,1.08738,1838.7,1838.6,1.0874]
[1746144594445,1.08734,1838.7,1838.6,1.0874]
[1746144596053,1.0874,1838.6,1838.5,4.78341]
[1746144596448,1.08739,1838.7,1838.5,4.78341]
[1746144596953,1.08739,1838.7,1838.6,1.0874]
[1746144597145,1.08739,1838.7,1838.5,4.78341]
[1746144597553,1.08739,1838.7,1838.6,1.0874]
[1746144597754,1.08739,1838.7,1838.6,2.7884]
[1746144598051,1.08739,1838.7,1838.6,1.701]
[1746144598254,2.75999,1838.7,1838.6,1.701]
[1746144599255,2.75999,1838.7,1838.5,3.696]
[1746144599256,1.0874,1838.6,1838.5,3.696]
[1746144599556,46.29167421,1838.6,1838.5,3.696]
[1746144600356,1.08746,1838.5,1838.4,46.732]
[1746144600559,45.49843421,1838.5,1838.4,5.932]
[1746144600757,48.70623421,1838.5,1838.4,5.932]
[1746144601263,53.70623421,1838.5,1838.4,5.932]
[1746144601449,48.70623421,1838.5,1838.4,5.932]
[1746144601850,1.08769,1838.1,1838.0,5.2544]
[1746144602152,1.08769,1838.1,1838.0,8.9504]
[1746144602348,43.82606421,1838.1,1838.0,44.496]
[1746144602556,43.82606421,1838.1,1838.0,3.696]
[1746144602851,47.03386421,1838.1,1838.0,3.696]
[1746144603057,48.74326421,1838.1,1838.0,3.696]
[1746144603255,1.08781,1837.9,1837.8,40.8]
[1746144603453,1.08787,1837.8,1837.7,5.1929]
[1746144603652,45.53564421,1837.8,1837.7,5.1929]
[1746144603854,46.37874421,1837.8,1837.7,3.539]
[1746144604060,1.08799,1837.6,1837.5,42.4943]
[1746144604257,22.08656421,1837.6,1837.5,42.4943]
[1746144604458,1.08807,1837.5,1837.3,11.35664]
[1746144604657,45.47764421,1837.5,1837.3,11.9628]
[1746144604857,23.73784421,1837.5,1837.3,13.05093]
[1746144605052,22.64977421,1837.5,1837.4,1.08811]
[1746144605252,1.6512,1837.5,1837.4,1.08811]
[1746144605452,4.29576,1837.7,1837.5,1.088]
[1746144605753,21.7398,1837.6,1837.5,1.088]
[1746144605955,42.73837421,1837.6,1837.5,1.088]
[1746144606156,42.73837421,1837.6,1837.5,4.784]
[1746144607361,43.82636421,1837.6,1837.5,4.784]
[1746144607761,43.82636421,1837.6,1837.5,3.696]
[1746144608061,45.47296421,1837.6,1837.5,3.696]
[1746144609160,1.08805,1837.5,1837.4,40.8]
[1746144609361,44.38497421,1837.5,1837.4,41.88811]
[1746144609561,22.64517421,1837.5,1837.4,41.88811]
[1746144610057,3.2078,1837.7,1837.5,1.08805]
[1746144610363,5.99938,1837.7,1837.5,1.08805]
[1746144610563,42.73837421,1837.6,1837.5,1.08805]
[1746144610764,42.73837421,1837.6,1837.5,1.92995]
[1746144610962,5.99933,1837.7,1837.6,1.08799]
[1746144611361,48.73770421,1837.7,1837.6,1.08799]
[1746144611560,0.8427,1837.9,1837.8,1.08787]
[1746144611763,7.5416,1838.0,1837.9,1.08781]
[1746144611965,44.44197421,1838.0,1837.9,1.08781]
[1746144612161,48.73752421,1838.0,1837.9,3.696]
[1746144612361,45.52972421,1838.0,1837.9,3.696]
[1746144612568,48.73752421,1838.0,1837.9,3.696]
[1746144613162,1.08793,1837.8,1837.6,4.62797]
[1746144613469,1.08799,1837.6,1837.5,8.6958]
[1746144613670,43.82636421,1837.6,1837.5,2.7638]
[1746144613868,43.82636421,1837.6,1837.4,41.88808]
[1746144613869,1.08805,1837.5,1837.4,41.88808]
[1746144614070,45.53242421,1837.5,1837.4,41.88808]
[1746144614268,2.79405,1837.5,1837.4,45.58408]
[1746144614770,1.706,1837.5,1837.4,45.58408]
[1746144615069,2.79405,1837.5,1837.4,45.58408]
[1746144615271,4.29573,1837.8,1837.4,44.496]
[1746144615475,42.73837421,1837.7,1837.6,1.08799]
[1746144616670,20.99857421,1837.7,1837.6,1.08799]
[1746144617469,20.99857421,1837.7,1837.6,2.75509]
[1746144617968,20.99857421,1837.7,1837.6,4.41219]
[1746144618166,3.2078,1838.0,1837.7,2.71983]
[1746144618468,3.2078,1838.0,1837.9,1.08781]
[1746144618669,4.45355,1838.2,1838.1,1.08769]
[1746144618873,25.1057,1838.2,1838.1,1.08769]
[1746144619071,46.10427421,1838.2,1838.1,1.08769]
[1746144620277,46.10427421,1838.2,1838.1,2.82579]
[1746144620871,44.45147421,1838.2,1838.1,2.82579]
[1746144621275,1.08752,1838.4,1838.3,1.08758]
[1746144621479,2.73862,1838.4,1838.2,2.82569]
[1746144621874,42.73837421,1838.3,1838.2,2.82569]
[1746144622079,42.73837421,1838.3,1838.2,6.52169]
[1746144622278,20.99857421,1838.3,1838.2,6.52169]
[1746144622671,1.6511,1838.4,1838.3,1.08758]
[1746144622871,1.6511,1838.4,1838.3,2.76208]
[1746144623177,44.38947421,1838.4,1838.3,6.45808]
[1746144623378,7.83518,1838.7,1838.3,5.3705]
[1746144623681,7.83518,1838.7,1838.5,1.08746]
[1746144623682,20.99857421,1838.6,1838.5,1.08746]
[1746144624178,5.91097,1838.9,1838.8,1.08728]
[1746144624375,20.99857421,1838.6,1838.5,47.25796]
[1746144624876,4.29507,1838.9,1838.7,1.08731]
[1746144625076,4.29507,1838.9,1838.8,1.08728]
[1746144625077,3.2078,1838.9,1838.8,1.08728]
[1746144625471,45.94617421,1838.9,1838.8,1.08728]
[1746144625977,42.73837421,1838.9,1838.8,1.08728]
[1746144626175,20.99857421,1838.9,1838.8,4.78328]
[1746144626975,20.99857421,1838.9,1838.8,6.49138]
[1746144627571,4.29492,1839.1,1839.0,1.08716]
[1746144627967,24.20637421,1839.1,1839.0,1.08716]
[1746144628177,3.2078,1839.1,1839.0,4.78316]
[1746144628372,1.08705,1839.2,1839.1,1.0871]
[1746144628774,43.82542421,1839.2,1839.1,1.0871]
[1746144629077,42.73837421,1839.2,1839.1,1.0871]
[1746144630672,43.82541421,1839.2,1839.1,1.0871]
[1746144630873,43.82541421,1839.2,1839.0,8.33812]
[1746144631978,43.82541421,1839.2,1839.1,1.0871]
[1746144632480,43.82541421,1839.2,1839.0,7.251]
[1746144632782,1.0871,1839.1,1839.0,7.251]
[1746144632980,43.82543421,1839.2,1839.0,7.251]
[1746144633381,1.0871,1839.1,1839.0,8.33812]
[1746144633585,22.08567421,1839.1,1839.0,7.251]
[1746144633880,1.0871,1839.1,1839.0,7.251]
[1746144634578,43.82547421,1839.1,1839.0,3.696]
[1746144634881,48.82547421,1839.1,1839.0,3.696]
[1746144635083,1.08722,1838.9,1838.8,5.932]
[1746144635279,43.82559421,1838.9,1838.8,5.932]
[1746144636181,43.82559421,1838.9,1838.8,9.628]
[1746144637585,43.82559421,1838.9,1838.8,10.71528]
[1746144638483,43.82559421,1838.9,1838.8,9.628]
[1746144638682,43.82559421,1838.9,1838.8,3.696]
[1746144638883,44.62459421,1838.9,1838.8,3.696]
[1746144639084,1.08728,1838.8,1838.7,1.08731]
[1746144639286,45.50885421,1838.8,1838.7,1.08731]
[1746144639486,44.42157421,1838.8,1838.7,1.08731]
[1746144640086,44.42157421,1838.8,1838.7,4.78331]
[1746144640683,0.8249,1838.9,1838.8,1.08728]
[1746144640882,2.78175,1839.1,1839.0,1.08716]
[1746144641188,45.52012421,1839.1,1839.0,4.78316]
[1746144641381,2.78175,1839.1,1839.0,4.78316]
[1746144645591,2.7817,1839.1,1839.0,4.78316]
[1746144646186,1.6946,1839.1,1839.0,4.78316]
[1746144647095,2.7817,1839.1,1839.0,4.78316]
[1746144648295,1.6946,1839.1,1839.0,4.78316]
[1746144648496,2.7817,1839.1,1839.0,4.78316]
[1746144648699,1.6946,1839.1,1839.0,4.78316]
[1746144648995,1.5848,1839.2,1839.1,1.0871]
[1746144649187,1.5848,1839.2,1839.1,2.7498]
[1746144649391,44.32317421,1839.2,1839.1,2.7498]
[1746144649896,45.41024421,1839.2,1839.1,2.7498]
[1746144650197,2.67692,1839.3,1839.2,1.08704]
[1746144650406,23.67549421,1839.3,1839.2,2.80504]
[1746144650885,45.41529421,1839.3,1839.2,1.718]
[1746144651090,1.08704,1839.2,1839.1,1.08706]
[1746144651299,45.45121421,1839.2,1839.1,1.08706]
[1746144653499,42.73837421,1839.2,1839.1,1.08706]
[1746144653795,1.6728,1839.4,1839.3,1.08698]
[1746144654192,44.41117421,1839.4,1839.3,1.08698]
[1746144654497,42.73837421,1839.4,1839.3,1.08698]
[1746144654691,42.73837421,1839.4,1839.3,2.70778]
[1746144654893,3.3109,1839.5,1839.4,1.08693]
[1746144655089,46.04927421,1839.5,1839.4,2.70773]
[1746144655498,44.41117421,1839.5,1839.4,2.70773]
[1746144656100,4.29464,1839.6,1839.5,1.08687]
[1746144656302,4.29464,1839.6,1839.5,2.80847]
[1746144656492,47.03301421,1839.6,1839.5,2.80847]
[1746144656694,48.77871421,1839.6,1839.5,2.80847]
[1746144657200,48.77871421,1839.6,1839.5,6.50447]
[1746144657402,47.69187421,1839.6,1839.5,6.50447]
[1746144658098,48.77868421,1839.6,1839.5,6.50447]
[1746144658406,48.77868421,1839.6,1839.5,5.4176]
[1746144659100,48.77868421,1839.6,1839.5,3.696]
[1746144660201,47.69187421,1839.6,1839.4,1.08692]
[1746144660393,44.34617421,1839.5,1839.4,1.08692]
[1746144662304,1.6078,1839.5,1839.4,1.08692]
[1746144663504,3.2078,1839.6,1839.5,1.08687]
[1746144663802,45.94617421,1839.6,1839.5,1.08687]
[1746144664103,45.94617421,1839.6,1839.5,4.78287]
[1746144665103,3.2078,1839.6,1839.5,4.78287]
[1746144665799,3.2078,1839.6,1839.5,6.49287]
[1746144666702,2.71645,1840.0,1839.5,6.49287]
[1746144666703,4.29453,1839.8,1839.7,1.08675]
[1746144666900,47.03290421,1839.8,1839.7,41.88675]
[1746144667401,48.67850421,1839.8,1839.7,41.88675]
[1746144669103,48.67846421,1839.8,1839.7,41.88675]
[1746144669306,1.6456,1839.8,1839.7,41.88675]
[1746144669602,1.6878,1839.9,1839.8,1.08669]
[1746144669808,44.42617421,1839.9,1839.8,2.69879]
[1746144670107,44.42617421,1839.9,1839.8,6.39479]
[1746144671111,42.73837421,1839.9,1839.8,6.39479]
[1746144671706,1.5871,1840.0,1839.9,1.08663]
[1746144672007,22.58567421,1840.0,1839.9,2.74873]
[1746144672205,22.58567421,1840.0,1839.9,6.44473]
[1746144672407,23.67224421,1840.0,1839.9,6.44473]
[1746144673603,23.67224421,1840.0,1839.9,5.3581]
[1746144673807,20.99857421,1839.8,1839.2,9.1398]
[1746144674009,43.82541421,1839.2,1838.9,14.44429947]
[1746144674511,52.20001421,1839.2,1838.9,14.44429947]
[1746144674807,52.20001421,1839.2,1838.9,55.24429947]
[1746144675312,52.20001421,1839.2,1839.1,18.05537434]
[1746144675803,1.08716,1839.0,1838.9,11.99250198]
[1746144676002,33.74069987,1839.0,1838.9,11.99250198]
[1746144676201,38.74069987,1839.0,1838.9,11.99250198]
[1746144677109,42.43669987,1839.0,1838.9,11.99250198]
[1746144678207,33.74069987,1839.0,1838.9,11.99250198]
[1746144678903,1.08734,1838.7,1838.5,43.58752]
[1746144679103,25.91373987,1838.8,1838.6,1.08738]
[1746144679308,27.00102987,1838.8,1838.6,1.08738]
[1746144679511,22.82709,1838.8,1838.6,1.08738]
[1746144679802,21.7398,1838.8,1838.5,42.5001]
[1746144680011,21.7398,1838.8,1838.7,1.08734]
[1746144680309,2.79456,1838.9,1838.7,1.08734]
[1746144680507,27.00101987,1838.8,1838.6,1.91466]
[1746144680707,1.08734,1838.7,1838.6,0.8273]
[1746144681010,2.77234,1838.7,1838.6,2.5619]
[1746144681610,1.685,1838.7,1838.6,3.6493]
[1746144682614,2.77234,1838.7,1838.6,3.6493]
[1746144682812,2.77234,1838.7,1838.6,2.5619]
[1746144683511,2.77234,1838.7,1838.6,3.6493]
[1746144683711,2.77234,1838.7,1838.6,2.5619]
[1746144684316,2.77234,1838.7,1838.6,3.6493]
[1746144684513,1.685,1838.7,1838.6,3.6493]
[1746144684816,2.77234,1838.7,1838.6,3.6493]
[1746144685115,2.77234,1838.7,1838.6,2.5619]
[1746144685319,2.77234,1838.7,1838.6,3.6493]
[1746144685614,2.77234,1838.7,1838.6,2.5619]
[1746144686914,1.0874,1838.6,1838.5,45.58342]
[1746144687117,2.824,1838.6,1838.5,43.58252]
[1746144687709,28.73773987,1838.6,1838.5,42.4951]
[1746144687915,28.73773987,1838.6,1838.5,40.8]
[1746144688608,33.57671987,1838.6,1838.2,5.932]
[1746144688804,33.57671987,1838.6,1838.0,6.7368]
[1746144688805,1.08764,1838.2,1838.0,4.29553]
[1746144689010,25.91373987,1838.2,1838.0,4.9139]
[1746144689221,4.9444,1838.6,1838.2,1.08764]
[1746144689222,2.68353,1838.4,1838.2,1.08764]
[1746144689418,1.596,1838.4,1838.3,1.7061]
[1746144689715,2.68352,1838.4,1838.3,1.7061]
[1746144689915,28.59725987,1838.4,1838.3,1.7061]
[1746144690119,28.59725987,1838.4,1838.3,2.79368]
[1746144690510,28.59725987,1838.4,1838.3,1.7061]
[1746144696514,27.50973987,1838.4,1838.1,40.8]
[1746144696717,1.08775,1838.0,1837.9,1.7388]
[1746144697023,5.26168987,1838.0,1837.9,1.7388]
[1746144697220,27.00148987,1838.0,1837.9,42.5388]
[1746144697420,27.00148987,1838.0,1837.9,40.8]
[1746144697620,28.61308987,1838.0,1837.9,40.8]
[1746144700616,28.61308987,1838.0,1837.9,42.4361]
[1746144701523,28.61308987,1838.0,1837.9,1.6361]
[1746144701823,1.08784,1837.9,1837.7,1.93199]
[1746144702118,28.62517987,1837.9,1837.8,1.5769]
[1746144702316,24.45124,1837.9,1837.8,2.66477]
[1746144702825,24.45124,1837.9,1837.8,1.5769]
[1746144703222,24.45124,1837.9,1837.8,2.66477]
[1746144704326,24.45124,1837.9,1837.8,1.5769]
[1746144705719,28.62517987,1837.9,1837.8,2.66477]
[1746144706627,25.91373987,1837.9,1837.8,2.66477]
[1746144706826,1.6321,1838.2,1838.1,1.08769]
[1746144707026,27.00138987,1838.2,1838.1,1.08769]
[1746144707326,27.00138987,1838.2,1838.0,1.0877]
[1746144707521,25.91373987,1838.2,1838.1,1.08769]
[1746144707721,1.08769,1838.1,1838.0,1.92101]
[1746144707922,1.08769,1838.1,1838.0,42.72101]
[1746144708121,22.82749,1838.1,1838.0,45.3293]
[1746144708323,28.75152987,1838.1,1838.0,44.496]
[1746144708827,28.75152987,1838.1,1838.0,45.58375]
[1746144709026,27.66383987,1838.1,1838.0,45.58375]
[1746144710426,1.89618,1838.2,1838.1,1.08769]
[1746144710626,23.63598,1838.2,1838.1,1.08769]
[1746144710820,27.80991987,1838.2,1838.1,1.08769]
[1746144711424,1.08769,1838.1,1838.0,41.88771]
[1746144712127,1.08769,1838.1,1838.0,45.58371]
[1746144712329,27.00142987,1838.1,1838.0,44.496]
[1746144712526,28.59932987,1838.1,1838.0,44.496]
[1746144713120,28.59932987,1838.1,1838.0,40.8]
[1746144714228,28.59932987,1838.1,1838.0,41.88775]
[1746144714729,28.59932987,1838.1,1838.0,40.8]
[1746144714928,1.89616,1838.2,1838.0,40.8]
[1746144715226,27.00139987,1838.2,1838.1,1.08769]
[1746144715426,27.00139987,1838.2,1838.1,1.90209]
[1746144716526,27.00139987,1838.2,1838.1,0.8144]
[1746144716724,28.60649987,1838.2,1838.1,0.8144]
[1746144717718,1.08769,1838.1,1838.0,42.6864]
[1746144717926,30.23809987,1838.1,1837.8,0.8492]
[1746144718119,25.91373987,1837.9,1837.6,2.394]
[1746144718324,28.60671987,1837.8,1837.7,42.3953]
[1746144718821,2.69298,1837.8,1837.7,42.3953]
[1746144719023,1.6051,1837.8,1837.7,43.48323]
[1746144719921,3.62209,1838.9,1837.7,50.6031]
[1746144720227,3.62209,1838.9,1838.8,1.08728]
[1746144720728,3.62209,1838.9,1838.8,9.47108]
[1746144720923,3.62209,1838.9,1838.8,50.27108]
[1746144721329,3.62209,1838.9,1838.8,53.96708]
[1746144722930,5.42449748,1839.0,1838.9,1.08722]
[1746144723129,7.1349862,1839.1,1839.0,1.08716]
[1746144723435,7.1349862,1839.1,1839.0,4.60416]
[1746144723641,5.99085,1839.6,1839.4,1.08693]
[1746144723936,4.17393987,1839.5,1839.4,1.08693]
[1746144724135,25.91373987,1839.5,1839.4,4.78293]
[1746144724432,3.2078,1839.6,1839.5,1.08687]
[1746144724628,3.61372352,1839.8,1839.7,1.08675]
[1746144725033,3.61372352,1839.8,1839.7,41.88675]
[1746144725234,3.61372352,1839.8,1839.7,50.45975]
[1746144725632,3.61372352,1839.8,1839.7,58.97575]
[1746144726532,7.1349862,1840.0,1839.9,1.08663]
[1746144726836,7.1349862,1840.0,1839.9,4.29443]
[1746144727131,7.1349862,1840.0,1839.9,48.79043]
[1746144727438,4.3769,1840.3,1840.1,1.08647]
[1746144727640,4.3769,1840.3,1840.2,1.5888]
[1746144727835,8.55083987,1840.3,1840.2,1.5888]
[1746144728038,30.29063987,1840.3,1840.2,1.5888]
[1746144729341,1.08657,1840.0,1839.9,44.0078]
[1746144729539,27.00030987,1840.0,1839.9,40.8]
[1746144729735,32.00030987,1840.0,1839.9,40.8]
[1746144729936,2.71658,1839.9,1839.4,3.516]
[1746144730136,25.91373987,1839.5,1839.2,4.0689]
[1746144730340,25.91373987,1839.3,1839.2,5.92511]
[1746144730541,25.91373987,1839.3,1839.2,4.8381]
[1746144730735,27.00071987,1839.3,1839.2,4.8381]
[1746144730935,28.60981987,1839.3,1839.2,3.2078]
[1746144731136,27.52283987,1839.3,1839.2,4.29484]
[1746144731344,1.6091,1839.3,1839.2,4.29484]
[1746144732246,1.6091,1839.3,1839.2,7.99084]
[1746144732742,28.60981987,1839.3,1839.2,6.9038]
[1746144733239,28.60981987,1839.3,1839.2,44.0078]
[1746144733442,28.60981987,1839.3,1839.2,40.8]
[1746144734540,33.60981987,1839.3,1839.2,40.8]
[1746144734937,28.60981987,1839.3,1839.2,40.8]
[1746144735747,27.52283987,1839.3,1839.0,1.7]
[1746144735936,1.6091,1839.3,1839.2,1.08704]
[1746144736137,1.89231,1839.5,1839.3,1.08697]
[1746144736337,25.91373987,1839.4,1839.3,2.78697]
[1746144737145,25.91373987,1839.4,1839.3,6.48297]
[1746144737349,2.3892,1839.5,1839.4,1.08693]
[1746144737642,2.3892,1839.5,1839.4,2.78693]
[1746144737643,6.56313987,1839.5,1839.4,2.78693]
[1746144737848,28.30293987,1839.5,1839.4,2.78693]
[1746144738147,29.38980987,1839.5,1839.4,6.48293]
[1746144738644,28.30293987,1839.5,1839.4,6.48293]
[1746144738844,1.5838,1839.5,1839.4,9.69073]
[1746144739039,1.08675,1839.7,1839.5,1.08684]
[1746144739240,4.17393987,1839.6,1839.5,2.79064]
[1746144739545,25.91373987,1839.6,1839.5,2.79064]
[1746144739849,28.70324987,1839.6,1839.5,2.79064]
[1746144741943,27.61643987,1839.6,1839.5,2.79064]
[1746144742246,27.61643987,1839.6,1839.5,6.48664]
[1746144742744,28.70324987,1839.6,1839.5,5.3998]
[1746144742939,28.70324987,1839.6,1839.5,3.696]
[1746144743139,28.70324987,1839.6,1839.5,4.78287]
[1746144743541,28.70324987,1839.6,1839.5,3.696]
[1746144743745,27.61643987,1839.6,1839.5,4.78287]
[1746144744547,28.70324987,1839.6,1839.5,4.78287]
[1746144745750,28.70324987,1839.6,1839.5,3.696]
[1746144746247,28.70324987,1839.6,1839.5,4.78287]
[1746144747749,28.70324987,1839.6,1839.5,3.696]
[1746144747951,31.91104987,1839.6,1839.5,3.696]
[1746144748153,1.08698,1839.4,1839.3,1.08697]
[1746144748351,27.00071987,1839.3,1839.2,41.88702]
[1746144748540,21.7398,1839.3,1839.2,41.88702]
[1746144748741,27.00071987,1839.3,1839.2,41.887]
[1746144748952,27.00071987,1839.3,1839.2,40.8]
[1746144749655,29.44321987,1839.3,1839.2,40.8]
[1746144750748,1.08704,1839.2,1839.0,4.29492]
[1746144750948,23.3564,1839.1,1839.0,4.29492]
[1746144751249,23.3564,1839.1,1839.0,48.79092]
[1746144751451,1.6166,1839.1,1839.0,48.79092]
[1746144752656,2.7037,1839.1,1839.0,47.7038]
[1746144752955,2.7037,1839.1,1839.0,48.79096]
[1746144754458,2.7037,1839.1,1839.0,45.58316]
[1746144754859,2.7037,1839.1,1839.0,44.496]
[1746144755154,2.7037,1839.1,1839.0,46.0824]
[1746144755552,2.7037,1839.1,1839.0,47.16956]
[1746144756752,1.0871,1839.1,1839.0,47.16956]
[1746144757955,1.0871,1839.1,1839.0,46.0824]
[1746144758153,1.0871,1839.1,1839.0,47.16956]
[1746144759458,1.08702,1839.3,1839.2,1.08704]
[1746144759659,27.00075987,1839.3,1839.2,1.08704]
[1746144759862,5.09687,1839.4,1839.3,1.08698]
[1746144760062,30.20850987,1839.4,1839.3,1.08698]
[1746144760260,30.20850987,1839.4,1839.3,4.78298]
[1746144761571,30.20850987,1839.4,1839.3,3.696]
[1746144762160,30.20850987,1839.4,1839.0,41.88713]
[1746144762372,27.00083987,1839.1,1839.0,42.4694]
[1746144762569,27.00083987,1839.1,1839.0,40.8]
[1746144762768,27.00083987,1839.1,1838.8,9.54]
[1746144762769,25.91373987,1839.1,1838.8,9.54]
[1746144762969,25.91373987,1838.9,1838.8,7.01928]
[1746144763170,25.91373987,1838.9,1838.8,8.68868]
[1746144763472,25.91373987,1838.9,1838.8,49.48868]
[1746144763771,1.08714,1839.1,1838.8,48.4014]
[1746144764069,25.91373987,1839.0,1838.9,2.75662]
[1746144764266,5.87869,1839.2,1839.1,1.0871]
[1746144764667,31.79242987,1839.2,1839.1,1.0871]
[1746144769078,28.58462987,1839.2,1839.1,1.0871]
[1746144769479,3.2078,1839.5,1839.2,1.08703]
[1746144769678,21.7398,1839.3,1839.2,1.08703]
[1746144769877,25.91373987,1839.3,1839.2,1.08703]
[1746144770073,1.08698,1839.3,1839.2,4.78303]
[1746144771282,27.00071987,1839.3,1839.2,4.78303]
[1746144772684,27.00071987,1839.3,1839.2,3.696]
[1746144774084,1.0871,1839.1,1839.0,1.87823]
[1746144774288,27.00083987,1839.1,1839.0,1.87823]
[1746144774783,28.73723987,1839.1,1839.0,1.87823]
[1746144775285,28.73723987,1839.1,1839.0,5.57423]
[1746144775885,28.73723987,1839.1,1839.0,3.696]
[1746144776186,28.73723987,1839.1,1839.0,1.08716]
[1746144777790,1.08716,1839.0,1838.9,5.12338]
[1746144777988,27.00089987,1839.0,1838.9,6.70408]
[1746144778289,28.72609987,1839.0,1838.9,9.3129]
[1746144778479,28.72609987,1839.0,1838.9,6.9038]
[1746144778688,28.72609987,1839.0,1838.9,3.696]
[1746144779191,1.08722,1838.9,1838.8,49.12870032]
[1746144779390,28.72615987,1838.9,1838.8,52.33650032]
[1746144780091,28.72615987,1838.9,1838.8,51.24924032]
[1746144780788,28.72615987,1838.9,1838.8,52.33652032]
[1746144780989,28.72615987,1838.9,1838.8,53.97202032]
[1746144781294,28.72615987,1838.9,1838.8,46.73058]
[1746144782791,28.72615987,1838.9,1838.8,43.52278]
[1746144783085,28.72615987,1838.9,1838.8,46.73058]
[1746144784687,1.0872,1839.0,1838.9,1.08722]
[1746144784889,1.0872,1839.0,1838.9,2.69662]
[1746144785089,27.00093987,1839.0,1838.9,6.39262]
[1746144785289,2.83405,1839.1,1839.0,1.08716]
[1746144785592,24.57385,1839.1,1839.0,2.69656]
[1746144786194,24.57385,1839.1,1839.0,6.39256]
[1746144786793,28.74778987,1839.1,1839.0,6.39256]
[1746144786995,28.74778987,1839.1,1839.0,5.3054]
[1746144789095,28.74778987,1839.1,1839.0,6.39256]
[1746144789297,28.74778987,1839.1,1839.0,5.3054]
[1746144789893,28.74778987,1839.1,1839.0,6.39256]
[1746144791602,28.74778987,1839.1,1839.0,5.3054]
[1746144792694,28.74778987,1839.1,1839.0,6.39256]
[1746144793194,28.74778987,1839.1,1839.0,5.3054]
[1746144793495,28.74778987,1839.1,1839.0,6.39256]
[1746144794192,27.00088987,1839.1,1839.0,6.0982]
[1746144794398,1.08715,1839.1,1839.0,6.0982]
[1746144794595,5.92528,1839.3,1839.2,1.08704]
[1746144794596,4.2948,1839.3,1839.2,1.08704]
[1746144794999,2.4124,1839.4,1839.2,1.08704]
[1746144795000,2.4124,1839.4,1839.3,1.08698]
[1746144795194,6.52244941,1839.5,1839.4,1.08693]
[1746144795394,28.26224941,1839.5,1839.4,4.29473]
[1746144795802,6.52244941,1839.5,1839.4,4.29473]
[1746144796001,6.52244941,1839.5,1839.4,5.15923]
[1746144796201,5.43554941,1839.5,1839.4,8.85523]
[1746144798801,5.43554941,1839.5,1839.4,18.36923]
[1746144798998,2.89129041,1839.5,1839.4,23.36923]
[1746144799198,4.1e-07,1839.5,1839.4,23.36923]
[1746144799607,10.69985756,1840.1,1839.4,23.36923]
[1746144799608,4.1e-07,1840.0,1839.9,1.08663]
[1746144799805,4.1e-07,1840.0,1839.9,4.66863]
[1746144800305,4.1e-07,1840.0,1839.9,10.03953]
[1746144800507,4.1e-07,1840.0,1839.9,50.83953]
[1746144800702,4.1e-07,1840.0,1839.9,56.77153]
[1746144804105,1.748,1840.3,1840.0,1.08653]
[1746144804306,27.00024987,1840.1,1840.0,2.77333]
[1746144804508,27.00024987,1840.1,1840.0,3.2078]
[1746144804709,1.08657,1840.0,1839.9,59.90661]
[1746144805012,25.91373987,1840.0,1839.9,58.30441]
[1746144805209,1.08655,1840.1,1840.0,4.78257]
[1746144805409,1.08655,1840.1,1840.0,3.696]
[1746144805711,4.17393987,1840.1,1840.0,4.78257]
[1746144806417,1.6811,1840.2,1840.1,1.08651]
[1746144806610,28.68133987,1840.2,1840.1,1.08651]
[1746144808707,28.68133987,1840.2,1840.0,3.696]
[1746144809012,28.66634987,1840.1,1840.0,4.78253]
[1746144809519,2.75261,1840.1,1840.0,4.78253]
[1746144810808,28.66634987,1840.1,1840.0,3.696]
[1746144811315,28.66634987,1840.1,1839.9,47.81861]
[1746144811316,1.08657,1840.0,1839.9,47.81861]
[1746144811518,1.08646,1840.2,1839.9,49.9398]
[1746144811709,25.91373987,1840.1,1840.0,1.08657]
[1746144812206,2.66336,1840.2,1840.1,1.08651]
[1746144812715,28.57709987,1840.2,1840.1,1.08651]
[1746144813417,1.08651,1840.1,1840.0,4.78252]
[1746144813614,27.00024987,1840.1,1840.0,4.78252]
[1746144813815,2.73271,1840.1,1840.0,4.78252]
[1746144814217,2.73271,1840.1,1840.0,3.696]
[1746144814419,28.64644987,1840.1,1840.0,4.78257]
[1746144818336,27.55993987,1840.1,1840.0,4.78257]
[1746144818521,28.64644987,1840.1,1840.0,6.50917]
[1746144818936,4.0722,1840.4,1840.0,5.4226]
[1746144819232,27.00021987,1840.2,1840.1,2.81305]
[1746144820038,5.26041987,1840.2,1840.1,1.7266]
[1746144820333,27.00021987,1840.2,1840.1,1.08651]
[1746144820733,1.08651,1840.1,1840.0,3.696]
[1746144820935,33.52034987,1840.1,1840.0,3.696]
[1746144821123,31.94239987,1840.1,1839.7,3.2078]
[1746144821437,27.00042987,1839.8,1839.7,44.0078]
[1746144822534,27.86192987,1839.8,1839.7,44.0078]
[1746144823036,27.86192987,1839.8,1839.7,40.8]
[1746144823538,29.54022987,1839.8,1839.7,40.8]
[1746144824936,29.54022987,1839.8,1839.7,41.88675]
[1746144825132,29.54022987,1839.8,1839.7,45.58275]
[1746144825332,29.54022987,1839.8,1839.7,44.496]
[1746144826434,29.54022987,1839.8,1839.7,45.58275]
[1746144827937,3.53976,1840.1,1839.8,1.08669]
[1746144827938,1.08666,1839.9,1839.8,1.08669]